[Event "36th Zalakaros Festival 2017"]
[Site "Zalakaros"]
[Date "2017.05.25"]
[Round "8"]
[White "Varga, Klara"]
[Black "Papp, Petra"]
[Result "1/2-1/2"]
[ECO "A20"]
[WhiteElo "2240"]
[BlackElo "2371"]
[Annotator "NA"]
[PlyCount "136"]
[EventDate "2017.??.??"]
[EventType "swiss"]
[EventCountry "HUN"]
[SourceTitle "playchess.com"]
[Source "ChessBase"]
[SourceQuality "1"]
[TimeControl "40/5400+30:1800+30"]

1. c4 {[%emt 0:04:47]} e5 {[%emt 0:01:00]} 2. g3 {[%emt 0:00:14]} Nc6 {[%emt 0:00:27]} 3. Bg2 {[%emt 0:00:05]} Bc5 {[%emt 0:00:47]} 4. e3 {[%emt 0:00:40]} d6 {[%emt 0:00:33]} 5. Nc3 {[%emt 0:01:55]} a6 {[%emt 0:00:14]} 6. Nge2 {[%emt 0:00:25]} Ba7 {[%emt 0:00:26]} 7. d4 {[%emt 0:00:56]} Nf6 {[%emt 0:00:44]} 8. O-O {[%emt 0:01:37]} O-O {[%emt 0:00:18]} 9. h3 {[%emt 0:16:36]} h6 {[%emt 0:00:32]} 10. Kh2 {[%emt 0:08:08]} Re8 {[%emt 0:01:18]} 11. b3 {[%emt 0:04:55]} Bf5 {[%emt 0:01:12]} 12. Nd5 {[%emt 0:09:04]} exd4 {[%emt 0:05:17]} 13. Bb2 {[%emt 0:04:21]} Be4 {[%emt 0:10:50]} 14. Nef4 {[%emt 0:14:32]} Bxg2 {[%emt 0:12:06]} 15. Kxg2 {[%emt 0:00:14]} Nxd5 {[%emt 0:02:16]} 16. cxd5 {[%emt 0:03:18]} Ne5 {[%emt 0:01:16]} 17. Bxd4 {[%emt 0:00:06]} Bxd4 {[%emt 0:00:30]} 18. Qxd4 {[%emt 0:00:02]} Qf6 {[%emt 0:02:50]} 19. f3 {[%emt 0:01:21]} a5 {[%emt 0:06:40]} 20. Rac1 {[%emt 0:05:18]} Re7 {[%emt 0:01:56]} 21. Nh5 {[%emt 0:01:32]} Qg6 {[%emt 0:05:21]} 22. g4 {[%emt 0:01:38]} Qd3 {[%emt 0:01:08]} 23. Rcd1 {[%emt 0:10:11]} Qxd4 {[%emt 0:01:53]} 24. Rxd4 {[%emt 0:00:01]} c5 {[%emt 0:00:39]} 25. Re4 {[%emt 0:03:01]} Ng6 {[%emt 0:02:51]} 26. Ng3 {[%emt 0:00:17]} b5 {[%emt 0:02:06]} 27. f4 {[%emt 0:02:46]} Ra6 {[%emt 0:04:03]} 28. Rd1 {[%emt 0:01:06]} Kf8 {[%emt 0:01:49]} 29. Kf2 {[%emt 0:01:47]} a4 {[%emt 0:01:34]} 30. b4 {[%emt 0:01:44]} Rxe4 {[%emt 0:04:02]} 31. Nxe4 {[%emt 0:00:03]} cxb4 {[%emt 0:00:13]} 32. Rb1 {[%emt 0:00:54]} b3 {[%emt 0:01:18]} 33. axb3 {[%emt 0:00:01]} Ke7 {[%emt 0:11:32]} 34. Nc3 {[%emt 0:00:23]} a3 {[%emt 0:01:28]} 35. Nxb5 {[%emt 0:00:40]} Ra5 {[%emt 0:02:30]} 36. Nc3 {[%emt 0:02:08]} Rc5 {[%emt 0:03:02]} 37. Rc1 {[%emt 0:00:18]} Kd7 {[%emt 0:00:44]} 38. b4 {[%emt 0:00:56]} Rc4 {[%emt 0:05:58]} 39. Na2 {[%emt 0:00:02]} Rxc1 {[%emt 0:00:59]} 40. Nxc1 {[%emt 0:00:00]} Kc7 {[%emt 0:00:08]} 41. Na2 {[%emt 0:00:19]} Ne7 {[%emt 0:01:27]} 42. e4 {[%emt 0:01:52]} g5 {[%emt 0:02:44]} 43. f5 {[%emt 0:06:55]} Ng8 {[%emt 0:02:42]} 44. Nc3 {[%emt 0:00:41]} Kb6 {[%emt 0:08:28]} 45. Ke3 {[%emt 0:01:30]} Nf6 {[%emt 0:00:10]} 46. Kd4 {[%emt 0:05:41]} Nd7 {[%emt 0:05:10]} 47. Kc4 {[%emt 0:00:19]} Nf6 {[%emt 0:00:58]} 48. Kb3 {[%emt 0:00:30]} h5 {[%emt 0:00:07]} 49. gxh5 {[%emt 0:06:24]} Nxh5 {[%emt 0:00:02]} 50. Kxa3 {[%emt 0:10:12]} Nf4 {[%emt 0:00:15]} 51. Kb3 {[%emt 0:00:04]} Nxh3 {[%emt 0:00:19]} 52. Ne2 {[%emt 0:01:13]} Nf2 {[%emt 0:02:22]} 53. Ng3 {[%emt 0:00:02]} Nd3 {[%emt 0:00:47]} 54. Kc3 {[%emt 0:01:18]} Ne5 {[%emt 0:00:24]} 55. f6 {[%emt 0:01:14]} Nd7 {[%emt 0:03:28]} 56. Nf5 {[%emt 0:00:49]} Kc7 {[%emt 0:00:44]} 57. Kd4 {[%emt 0:00:16]} g4 {[%emt 0:01:04]} 58. b5 {[%emt 0:00:43]} Nxf6 {[%emt 0:00:46]} 59. b6+ {[%emt 0:00:14]} Kxb6 {[%emt 0:01:13]} 60. Nxd6 {[%emt 0:00:02]} g3 {[%emt 0:00:09]} 61. Nc4+ {[%emt 0:00:05]} Kc7 {[%emt 0:02:16]} 62. Ne3 {[%emt 0:00:05]} Ng4 {[%emt 0:03:23]} 63. e5 {[%emt 0:00:03]} Kd7 {[%emt 0:03:42]} 64. Ke4 {[%emt 0:00:38]} f5+ {[%emt 0:01:51]} 65. exf6 {[%emt 0:02:16]} Nxf6+ {[%emt 0:00:11]} 66. Kf3 {[%emt 0:00:07]} Kd6 {[%emt 0:00:09]} 67. Kxg3 {[%emt 0:00:03]} Nxd5 {[%emt 0:00:02]} 68. Nxd5 {[%emt 0:00:07]} Kxd5 {[%emt 0:00:01]} 1/2-1/2

[Event "36th Zalakaros Festival 2017"]
[Site "Zalakaros"]
[Date "2017.05.25"]
[Round "8"]
[White "Czupor, Attila"]
[Black "Szalanczy, Emil"]
[Result "1-0"]
[ECO "B76"]
[WhiteElo "2230"]
[BlackElo "2230"]
[Annotator "NA"]
[PlyCount "63"]
[EventDate "2017.??.??"]
[EventType "swiss"]
[EventCountry "HUN"]
[SourceTitle "playchess.com"]
[Source "ChessBase"]
[SourceQuality "1"]
[TimeControl "40/5400+30:1800+30"]

1. e4 {[%emt 0:00:32]} c5 {[%emt 0:00:34]} 2. Nf3 {[%emt 0:00:18]} d6 {[%emt 0:00:02]} 3. d4 {[%emt 0:00:15]} cxd4 {[%emt 0:00:10]} 4. Nxd4 {[%emt 0:00:08]} Nf6 {[%emt 0:00:05]} 5. Nc3 {[%emt 0:00:07]} g6 {[%emt 0:00:10]} 6. Be3 {[%emt 0:00:09]} Bg7 {[%emt 0:00:02]} 7. f3 {[%emt 0:00:08]} Nc6 {[%emt 0:00:02]} 8. Qd2 {[%emt 0:00:06]} O-O {[%emt 0:00:05]} 9. O-O-O {[%emt 0:00:05]} Nxd4 {[%emt 0:00:28]} 10. Bxd4 {[%emt 0:00:08]} Be6 {[%emt 0:00:05]} 11. Kb1 {[%emt 0:01:09]} Rc8 {[%emt 0:00:03]} 12. g4 {[%emt 0:00:43]} Nd7 {[%emt 0:00:36]} 13. Bxg7 {[%emt 0:01:20]} Kxg7 {[%emt 0:00:03]} 14. Nd5 {[%emt 0:02:27]} Ne5 {[%emt 0:01:09]} 15. Be2 {[%emt 0:04:00]} Bxd5 {[%emt 0:02:55]} 16. exd5 {[%emt 0:00:15]} Qb6 {[%emt 0:00:39]} 17. h4 {[%emt 0:02:19]} f6 {[%emt 0:10:01]} 18. f4 {[%emt 0:14:53]} Nf7 {[%emt 0:03:02]} 19. Bd3 {[%emt 0:14:17]} Qd4 {[%emt 0:06:41]} 20. Qh2 {[%emt 0:03:44]} Qa4 {[%emt 0:08:14]} 21. g5 {[%emt 0:12:45]} f5 {[%emt 0:10:31]} 22. h5 {[%emt 0:00:43]} Rh8 {[%emt 0:00:29]} 23. Rde1 {[%emt 0:09:30]} Rce8 {[%emt 0:09:27]} 24. c4 {[%emt 0:06:03]} Qa5 {[%emt 0:13:25]} 25. Qc2 {[%emt 0:02:30]} Rhg8 {[%emt 0:03:54]} 26. Re6 {[%emt 0:09:48]} Nd8 {[%emt 0:06:26]} 27. hxg6 {[%emt 0:11:38]} hxg6 {[%emt 0:00:55]} 28. Rxg6+ {[%emt 0:00:52]} Kxg6 {[%emt 0:02:18]} 29. Bxf5+ {[%emt 0:00:04]} Kg7 {[%emt 0:01:15]} 30. Rh7+ {[%emt 0:00:04]} Kf8 {[%emt 0:00:15]} 31. Qh2 {[%emt 0:00:06]} Nf7 {[%emt 0:07:12]} 32. Rxf7+ {[%emt 0:00:11] Qe1+ Kc2+} 1-0

[Event "36th Zalakaros Festival 2017"]
[Site "Zalakaros"]
[Date "2017.05.25"]
[Round "8"]
[White "Hardicsay, Peter"]
[Black "Krykun, Yuriy"]
[Result "0-1"]
[ECO "A04"]
[WhiteElo "2218"]
[BlackElo "2308"]
[Annotator "NA"]
[PlyCount "76"]
[EventDate "2017.??.??"]
[EventType "swiss"]
[EventCountry "HUN"]
[SourceTitle "playchess.com"]
[Source "ChessBase"]
[SourceQuality "1"]
[TimeControl "40/5400+30:1800+30"]

1. Nf3 {[%emt 0:00:03]} c5 {[%emt 0:03:04]} 2. b3 {[%emt 0:00:32]} d6 {[%emt 0:02:05]} 3. Bb2 {[%emt 0:05:47]} e5 {[%emt 0:00:40]} 4. e4 {[%emt 0:03:04]} Nc6 {[%emt 0:02:22]} 5. Bc4 {[%emt 0:03:47]} Be7 {[%emt 0:01:14]} 6. Nc3 {[%emt 0:03:05]} Nf6 {[%emt 0:00:29]} 7. h3 {[%emt 0:05:14]} O-O {[%emt 0:00:41]} 8. d3 {[%emt 0:04:22]} Na5 {[%emt 0:03:42]} 9. Nd2 {[%emt 0:01:13]} Nxc4 {[%emt 0:01:57]} 10. dxc4 {[%emt 0:11:11]} Ne8 {[%emt 0:04:15]} 11. Qe2 {[%emt 0:12:16]} Nc7 {[%emt 0:04:56]} 12. O-O-O {[%emt 0:01:09]} a6 {[%emt 0:00:50]} 13. Kb1 {[%emt 0:00:17]} b5 {[%emt 0:13:02]} 14. Nd5 {[%emt 0:11:00]} Nxd5 {[%emt 0:03:10]} 15. exd5 {[%emt 0:05:04]} b4 {[%emt 0:07:25]} 16. g4 {[%emt 0:07:03]} Bg5 {[%emt 0:02:34]} 17. Ne4 {[%emt 0:01:37]} Bf4 {[%emt 0:01:02]} 18. Bc1 {[%emt 0:02:33]} Bxc1 {[%emt 0:05:34]} 19. Rxc1 {[%emt 0:00:03]} f5 {[%emt 0:00:17]} 20. Nd2 {[%emt 0:06:27]} a5 {[%emt 0:06:40]} 21. c3 {[%emt 0:08:11]} Bd7 {[%emt 0:07:46]} 22. cxb4 {[%emt 0:02:42]} axb4 {[%emt 0:00:07]} 23. Rc2 {[%emt 0:00:05]} fxg4 {[%emt 0:01:55]} 24. hxg4 {[%emt 0:00:08]} Be8 {[%emt 0:00:07]} 25. f3 {[%emt 0:00:42]} Bg6 {[%emt 0:00:05]} 26. Ne4 {[%emt 0:00:01]} Rf4 {[%emt 0:00:23]} 27. Kc1 {[%emt 0:01:04]} Bxe4 {[%emt 0:00:16]} 28. fxe4 {[%emt 0:00:03]} Qg5 {[%emt 0:00:08]} 29. Kb1 {[%emt 0:00:25]} Raf8 {[%emt 0:01:51]} 30. a4 {[%emt 0:00:18]} bxa3 {[%emt 0:01:17]} 31. Ka2 {[%emt 0:00:09]} Qxg4 {[%emt 0:02:05]} 32. Qh2 {[%emt 0:00:36]} Qg6 {[%emt 0:01:28]} 33. Rg1 {[%emt 0:03:10]} Qxe4 {[%emt 0:00:27]} 34. Rcg2 {[%emt 0:00:45]} g6 {[%emt 0:00:32]} 35. Qh6 {[%emt 0:00:44]} Rf2+ {[%emt 0:00:13]} 36. Rxf2 {[%emt 0:00:06]} Rxf2+ {[%emt 0:00:05]} 37. Kxa3 {[%emt 0:00:07]} Qc2 {[%emt 0:01:05]} 38. Ka4 {[%emt 0:00:24]} Rf7 {[%emt 0:00:22]} 0-1

[Event "36th Zalakaros Festival 2017"]
[Site "Zalakaros"]
[Date "2017.05.25"]
[Round "8"]
[White "Havanecz, Bianka"]
[Black "Almasi, Istvan"]
[Result "1/2-1/2"]
[ECO "A45"]
[WhiteElo "2210"]
[BlackElo "2398"]
[Annotator "NA"]
[PlyCount "63"]
[EventDate "2017.??.??"]
[EventType "swiss"]
[EventCountry "HUN"]
[SourceTitle "playchess.com"]
[Source "ChessBase"]
[SourceQuality "1"]
[TimeControl "40/5400+30:1800+30"]

1. d4 {[%emt 0:00:02]} Nf6 {[%emt 0:06:13]} 2. Bf4 {[%emt 0:00:07]} c5 {[%emt 0:02:20]} 3. d5 {[%emt 0:00:08]} b5 {[%emt 0:08:18]} 4. a4 {[%emt 0:00:09]} Bb7 {[%emt 0:02:07]} 5. e4 {[%emt 0:00:20]} Nxe4 6. axb5 {[%emt 0:00:13]} d6 {[%emt 0:06:48]} 7. Nf3 {[%emt 0:03:16]} g6 {[%emt 0:01:02]} 8. c4 {[%emt 0:14:32]} Bg7 {[%emt 0:00:18]} 9. Bd3 {[%emt 0:04:36]} Nf6 {[%emt 0:00:42]} 10. Qd2 {[%emt 0:02:40]} a6 {[%emt 0:03:17]} 11. Nc3 {[%emt 0:01:43]} axb5 {[%emt 0:05:22]} 12. Rxa8 {[%emt 0:00:07]} Bxa8 {[%emt 0:00:03]} 13. Nxb5 {[%emt 0:00:06]} Na6 {[%emt 0:02:35]} 14. O-O {[%emt 0:04:05]} O-O {[%emt 0:00:44]} 15. Bh6 {[%emt 0:01:42]} Bxh6 {[%emt 0:11:26]} 16. Qxh6 {[%emt 0:00:06]} e6 {[%emt 0:00:05]} 17. Qf4 {[%emt 0:48:41]} Nb4 {[%emt 0:02:00]} 18. Bb1 {[%emt 0:00:38]} exd5 {[%emt 0:01:55]} 19. Nxd6 {[%emt 0:06:33]} Nh5 {[%emt 0:16:33]} 20. Qe5 {[%emt 0:00:05]} Nc6 {[%emt 0:00:26]} 21. Qxd5 {[%emt 0:00:38]} Nd4 {[%emt 0:00:48]} 22. Qxc5 {[%emt 0:00:51]} Ne2+ {[%emt 0:03:35]} 23. Kh1 {[%emt 0:00:10]} Bxf3 {[%emt 0:00:08]} 24. gxf3 {[%emt 0:00:46]} Qh4 {[%emt 0:00:40]} 25. Nc8 {[%emt 0:03:29]} Qh3 {[%emt 0:11:21]} 26. Ne7+ {[%emt 0:00:20]} Kg7 {[%emt 0:00:27]} 27. Nf5+ {[%emt 0:02:37]} gxf5 {[%emt 0:04:27]} 28. Qe5+ {[%emt 0:00:05]} Kh6 {[%emt 0:00:54]} 29. Qd6+ {[%emt 0:01:13]} Kg7 {[%emt 0:03:33]} 30. Qe5+ {[%emt 0:00:05]} Kh6 {[%emt 0:01:18]} 31. Qd6+ {[%emt 0:00:05]} Kg7 {[%emt 0:03:14]} 32. Qe5+ {[%emt 0:00:05]} 1/2-1/2

[Event "36th Zalakaros Festival 2017"]
[Site "Zalakaros"]
[Date "2017.05.25"]
[Round "8"]
[White "Karacsonyi, Gellert"]
[Black "Szente Varga, Fruzsina"]
[Result "1/2-1/2"]
[ECO "C68"]
[WhiteElo "2189"]
[BlackElo "2190"]
[Annotator "NA"]
[PlyCount "135"]
[EventDate "2017.??.??"]
[EventType "swiss"]
[EventCountry "HUN"]
[SourceTitle "playchess.com"]
[Source "ChessBase"]
[SourceQuality "1"]
[TimeControl "40/5400+30:1800+30"]

1. e4 {[%emt 0:00:01]} e5 {[%emt 0:00:37]} 2. Nf3 {[%emt 0:00:05]} Nc6 {[%emt 0:00:05]} 3. Bb5 {[%emt 0:00:06]} a6 {[%emt 0:00:05]} 4. Bxc6 {[%emt 0:00:05]} dxc6 {[%emt 0:00:04]} 5. O-O {[%emt 0:00:07]} f6 {[%emt 0:00:06]} 6. d4 {[%emt 0:00:05]} exd4 {[%emt 0:00:08]} 7. Nxd4 {[%emt 0:00:05]} c5 {[%emt 0:00:06]} 8. Nb3 {[%emt 0:00:05]} Qxd1 {[%emt 0:00:06]} 9. Rxd1 {[%emt 0:00:04]} Bg4 {[%emt 0:00:41]} 10. f3 {[%emt 0:00:05]} Be6 {[%emt 0:00:54]} 11. Bf4 {[%emt 0:00:06]} c4 {[%emt 0:00:22]} 12. Nd4 {[%emt 0:00:07]} O-O-O {[%emt 0:00:17]} 13. Nc3 {[%emt 0:00:05]} Bf7 {[%emt 0:04:46]} 14. Kf2 {[%emt 0:00:31]} Ne7 {[%emt 0:09:34]} 15. Be3 {[%emt 0:04:57]} g6 {[%emt 0:16:11]} 16. Nde2 {[%emt 0:01:06]} Bg7 {[%emt 0:13:20]} 17. a4 {[%emt 0:07:05]} b6 {[%emt 0:00:28]} 18. g4 {[%emt 0:13:50]} Nc6 {[%emt 0:21:30]} 19. Nf4 {[%emt 0:05:10]} Nb4 {[%emt 0:01:10]} 20. Rxd8+ {[%emt 0:03:25]} Rxd8 {[%emt 0:00:07]} 21. Rc1 {[%emt 0:01:31]} Bf8 {[%emt 0:06:55]} 22. h4 {[%emt 0:03:29]} Bd6 {[%emt 0:03:23]} 23. Nfe2 {[%emt 0:03:09]} c5 {[%emt 0:03:45]} 24. f4 {[%emt 0:01:38]} Be7 {[%emt 0:00:16]} 25. Ng3 {[%emt 0:04:29]} Kc7 {[%emt 0:02:08]} 26. f5 {[%emt 0:02:41]} Bd6 {[%emt 0:00:33]} 27. g5 {[%emt 0:01:59]} Be5 {[%emt 0:02:06]} 28. Nge2 {[%emt 0:04:43]} Kc6 {[%emt 0:00:39]} 29. gxf6 {[%emt 0:02:05]} gxf5 {[%emt 0:00:24]} 30. exf5 {[%emt 0:00:27]} Rh8 {[%emt 0:06:30]} 31. Ne4 {[%emt 0:25:16]} Bxb2 {[%emt 0:00:17]} 32. Rg1 {[%emt 0:00:26]} Bd5 {[%emt 0:02:56]} 33. Bh6 {[%emt 0:00:27]} Re8 {[%emt 0:03:40]} 34. N4c3 {[%emt 0:00:21]} Rxe2+ {[%emt 0:00:40]} 35. Nxe2 {[%emt 0:03:44]} Bxf6 {[%emt 0:00:05]} 36. Bg5 {[%emt 0:03:35]} Be5 {[%emt 0:00:53]} 37. c3 {[%emt 0:03:17]} Nd3+ {[%emt 0:00:02]} 38. Ke3 {[%emt 0:00:12]} b5 {[%emt 0:01:30]} 39. axb5+ {[%emt 0:03:54]} axb5 {[%emt 0:00:01]} 40. Bh6 {[%emt 0:00:00]} b4 {[%emt 0:01:10]} 41. cxb4 {[%emt 0:07:30]} cxb4 {[%emt 0:00:10]} 42. Bg7 {[%emt 0:00:52]} Bd6 {[%emt 0:01:19]} 43. Bd4 {[%emt 0:02:38]} Bf8 {[%emt 0:02:44]} 44. Bg7 {[%emt 0:08:30]} Bd6 {[%emt 0:00:20]} 45. Nd4+ {[%emt 0:01:19]} Kd7 {[%emt 0:00:58]} 46. Bh6 {[%emt 0:03:31]} Be5 {[%emt 0:03:41]} 47. Ra1 {[%emt 0:00:33]} Bg3 {[%emt 0:03:52]} 48. Kd2 {[%emt 0:03:00]} Bxh4 {[%emt 0:02:08]} 49. Ra7+ {[%emt 0:00:08]} Ke8 {[%emt 0:07:30]} 50. Rxh7 {[%emt 0:00:23]} Bf6 {[%emt 0:04:23]} 51. Nb5 {[%emt 0:00:54]} Bg8 {[%emt 0:03:28]} 52. Nd6+ {[%emt 0:00:37]} Kd8 {[%emt 0:00:04]} 53. Rb7 {[%emt 0:00:46]} Bd5 {[%emt 0:00:29]} 54. Rb5 {[%emt 0:06:02]} Bc6 {[%emt 0:03:44]} 55. Rb6 {[%emt 0:00:31]} Bc3+ {[%emt 0:01:55]} 56. Ke2 {[%emt 0:00:12]} Bd5 {[%emt 0:00:21]} 57. Rb5 {[%emt 0:01:37]} Bc6 {[%emt 0:00:09]} 58. Ra5 {[%emt 0:00:22]} b3 {[%emt 0:02:01]} 59. Ra7 {[%emt 0:00:08]} Bf6 {[%emt 0:01:10]} 60. Be3 {[%emt 0:00:13]} Bd7 {[%emt 0:00:42]} 61. Nxc4 {[%emt 0:01:17]} b2 {[%emt 0:00:20]} 62. Nd2 {[%emt 0:01:51]} Bxf5 {[%emt 0:00:31]} 63. Rf7 {[%emt 0:02:32]} Nc1+ {[%emt 0:00:20]} 64. Kf3 {[%emt 0:00:44]} Nb3 {[%emt 0:00:25]} 65. Rb7 {[%emt 0:00:53]} Bc2 {[%emt 0:01:06]} 66. Rxb3 {[%emt 0:00:49]} Bxb3 {[%emt 0:00:05]} 67. Bc5 {[%emt 0:00:16]} Bc3 {[%emt 0:00:47]} 68. Ke4 1/2-1/2

[Event "36th Zalakaros Festival 2017"]
[Site "Zalakaros"]
[Date "2017.05.25"]
[Round "8"]
[White "Hradeczky, Tamas"]
[Black "Pacan-Milej, Kosma"]
[Result "0-1"]
[ECO "B92"]
[WhiteElo "2146"]
[BlackElo "2317"]
[Annotator "NA"]
[PlyCount "104"]
[EventDate "2017.??.??"]
[EventType "swiss"]
[EventCountry "HUN"]
[SourceTitle "playchess.com"]
[Source "ChessBase"]
[SourceQuality "1"]
[TimeControl "40/5400+30:1800+30"]

1. e4 {[%emt 0:00:10]} c5 {[%emt 0:01:12]} 2. Nf3 {[%emt 0:00:07]} d6 {[%emt 0:00:10]} 3. d4 {[%emt 0:00:09]} Nf6 {[%emt 0:00:06]} 4. Nc3 {[%emt 0:01:30]} cxd4 {[%emt 0:00:21]} 5. Nxd4 {[%emt 0:00:13]} a6 {[%emt 0:00:06]} 6. Be2 {[%emt 0:01:11]} e5 {[%emt 0:00:07]} 7. Nb3 {[%emt 0:02:09]} Be7 {[%emt 0:00:29]} 8. Be3 {[%emt 0:01:58]} Be6 {[%emt 0:00:37]} 9. O-O {[%emt 0:00:48]} Nbd7 {[%emt 0:00:14]} 10. a4 {[%emt 0:03:23]} Nb6 {[%emt 0:21:58]} 11. Na5 {[%emt 0:13:56]} Rb8 {[%emt 0:14:07]} 12. Qd2 {[%emt 0:02:51]} O-O {[%emt 0:02:02]} 13. h3 {[%emt 0:09:20]} Qc7 {[%emt 0:01:51]} 14. f4 {[%emt 0:10:07]} exf4 {[%emt 0:11:15]} 15. Rxf4 {[%emt 0:00:15]} d5 {[%emt 0:05:55]} 16. Kh1 {[%emt 0:04:11]} Nxe4 {[%emt 0:09:26]} 17. Nxe4 {[%emt 0:07:44]} dxe4 {[%emt 0:00:06]} 18. Rxe4 {[%emt 0:01:15]} Nd5 {[%emt 0:00:51]} 19. Bg1 {[%emt 0:05:09]} Rbc8 {[%emt 0:06:25]} 20. Nc4 {[%emt 0:05:37]} Rfd8 {[%emt 0:01:35]} 21. Qe1 {[%emt 0:10:47]} Bf6 {[%emt 0:12:13]} 22. Bh2 {[%emt 0:06:27]} Qc6 {[%emt 0:01:30]} 23. Qf1 {[%emt 0:02:25]} b5 {[%emt 0:04:09]} 24. axb5 {[%emt 0:00:43]} axb5 {[%emt 0:00:04]} 25. Na5 {[%emt 0:01:10]} Qxc2 {[%emt 0:01:15]} 26. Bd3 {[%emt 0:00:15]} Qxb2 {[%emt 0:00:56]} 27. Rb1 {[%emt 0:00:20]} Qc3 {[%emt 0:02:20]} 28. Nb7 {[%emt 0:00:28]} Rd7 {[%emt 0:01:55]} 29. Nd6 {[%emt 0:00:33]} Rcd8 {[%emt 0:00:37]} 30. Nxb5 {[%emt 0:00:25]} Qa5 {[%emt 0:00:26]} 31. Nd4 {[%emt 0:01:19]} Nc3 {[%emt 0:00:49]} 32. Nc6 {[%emt 0:04:18]} Rxd3 {[%emt 0:00:40]} 33. Nxa5 {[%emt 0:00:25]} Nxe4 {[%emt 0:00:08]} 34. Nc6 {[%emt 0:01:52]} Rd1 {[%emt 0:00:26]} 35. Nxd8 {[%emt 0:00:24]} Rxf1+ {[%emt 0:00:05]} 36. Rxf1 {[%emt 0:00:07]} Bxd8 {[%emt 0:00:02]} 37. Re1 {[%emt 0:00:27]} f5 {[%emt 0:01:30]} 38. Be5 {[%emt 0:00:17]} Kf7 {[%emt 0:00:32]} 39. Kh2 {[%emt 0:00:13]} g6 {[%emt 0:00:49]} 40. g4 {[%emt 0:00:00]} Bd5 {[%emt 0:00:27]} 41. gxf5 {[%emt 0:00:40]} gxf5 {[%emt 0:00:04]} 42. Bf4 {[%emt 0:00:17]} Ke6 {[%emt 0:02:51]} 43. Ra1 {[%emt 0:00:22]} Nc5 {[%emt 0:02:48]} 44. Ra7 {[%emt 0:04:06]} Be7 {[%emt 0:00:28]} 45. Be3 {[%emt 0:00:27]} Nd3 {[%emt 0:01:27]} 46. Kg1 {[%emt 0:00:30]} h5 {[%emt 0:01:22]} 47. Ra6+ {[%emt 0:00:25]} Ke5 {[%emt 0:00:51]} 48. Rh6 {[%emt 0:00:35]} Bf3 {[%emt 0:00:17]} 49. Rh7 {[%emt 0:00:23]} Bh4 {[%emt 0:00:40]} 50. Rd7 {[%emt 0:00:38]} Nf4 {[%emt 0:01:00]} 51. Bf2 {[%emt 0:03:11]} Nxh3+ {[%emt 0:01:28]} 52. Kf1 {[%emt 0:01:13]} Nxf2 {[%emt 0:00:21]} 0-1

[Event "36th Zalakaros Festival 2017"]
[Site "Zalakaros"]
[Date "2017.05.26"]
[Round "9"]
[White "Havasi, Gergo"]
[Black "Pacan-Milej, Kosma"]
[Result "0-1"]
[ECO "B90"]
[WhiteElo "2402"]
[BlackElo "2317"]
[Annotator "NA"]
[PlyCount "96"]
[EventDate "2017.??.??"]
[EventType "swiss"]
[EventCountry "HUN"]
[SourceTitle "playchess.com"]
[Source "ChessBase"]
[SourceQuality "1"]
[TimeControl "40/5400+30:1800+30"]

1. e4 {[%emt 0:02:35]} c5 {[%emt 0:00:42]} 2. Nf3 {[%emt 0:00:23]} d6 {[%emt 0:00:07]} 3. d4 {[%emt 0:03:25]} Nf6 {[%emt 0:00:38]} 4. Nc3 {[%emt 0:00:18]} cxd4 {[%emt 0:00:06]} 5. Nxd4 {[%emt 0:00:09]} a6 {[%emt 0:00:07]} 6. h3 {[%emt 0:00:10]} g6 {[%emt 0:00:05]} 7. g4 {[%emt 0:04:30]} Bg7 {[%emt 0:00:06]} 8. Bg2 {[%emt 0:00:48]} h5 {[%emt 0:00:09]} 9. g5 {[%emt 0:03:00]} Nfd7 {[%emt 0:00:20]} 10. Be3 {[%emt 0:01:12]} O-O {[%emt 0:01:18]} 11. Qd2 {[%emt 0:15:07]} Nc6 {[%emt 0:00:48]} 12. O-O-O {[%emt 0:00:08]} Nb6 {[%emt 0:01:14]} 13. b3 {[%emt 0:01:05]} a5 {[%emt 0:02:07]} 14. a4 {[%emt 0:08:03]} Bd7 {[%emt 0:06:15]} 15. Kb1 {[%emt 0:07:39]} Rc8 {[%emt 0:04:56]} 16. Ndb5 {[%emt 0:08:12]} Nb4 {[%emt 0:09:48]} 17. Rc1 {[%emt 0:03:34]} Na8 {[%emt 0:23:11]} 18. Bd4 {[%emt 0:15:05]} Bxd4 {[%emt 0:01:45]} 19. Nxd4 {[%emt 0:00:33]} Qb6 {[%emt 0:06:52]} 20. f4 {[%emt 0:09:57]} Qc5 {[%emt 0:03:01]} 21. Kb2 {[%emt 0:07:28]} Nc7 {[%emt 0:01:20]} 22. h4 {[%emt 0:05:17]} b5 {[%emt 0:12:33]} 23. Bh3 {[%emt 0:00:01]} e6 {[%emt 0:01:15]} 24. Ra1 {[%emt 0:02:39]} bxa4 {[%emt 0:07:09]} 25. Rxa4 {[%emt 0:00:32]} Na8 {[%emt 0:04:34]} 26. Ra3 {[%emt 0:00:33]} Nb6 {[%emt 0:00:29]} 27. f5 {[%emt 0:00:30]} e5 {[%emt 0:06:57]} 28. Nf3 {[%emt 0:00:35]} gxf5 {[%emt 0:03:21]} 29. g6 {[%emt 0:00:26]} fxg6 {[%emt 0:00:41]} 30. Rg1 {[%emt 0:00:11]} Kg7 {[%emt 0:00:29]} 31. exf5 {[%emt 0:00:44]} Bxf5 {[%emt 0:00:25]} 32. Bxf5 {[%emt 0:00:30]} Rxf5 {[%emt 0:00:06]} 33. Rg3 {[%emt 0:00:28]} d5 {[%emt 0:01:40]} 34. Ng5 {[%emt 0:00:16]} Rc6 {[%emt 0:00:25]} 35. Rg2 {[%emt 0:00:35]} Rf4 {[%emt 0:00:58]} 36. Ra1 {[%emt 0:00:38]} d4 {[%emt 0:01:32]} 37. Nce4 {[%emt 0:00:13]} Qd5 {[%emt 0:00:10]} 38. Qe1 {[%emt 0:00:43]} d3 {[%emt 0:01:05]} 39. c3 {[%emt 0:00:36]} Nc2 {[%emt 0:00:20]} 40. Rxc2 {[%emt 0:00:00]} dxc2 {[%emt 0:00:07]} 41. Kxc2 {[%emt 0:01:53]} a4 {[%emt 0:01:38]} 42. bxa4 {[%emt 0:00:35]} Rc4 {[%emt 0:06:31]} 43. Nd2 {[%emt 0:06:33]} Rxa4 {[%emt 0:00:58]} 44. Rxa4 {[%emt 0:00:40]} Rxa4 {[%emt 0:01:22]} 45. Nge4 {[%emt 0:01:03]} Nc4 {[%emt 0:01:02]} 46. Qf2 {[%emt 0:01:03]} Ra2+ {[%emt 0:01:45]} 47. Kc1 {[%emt 0:00:11]} Ra1+ {[%emt 0:00:21]} 48. Kc2 {[%emt 0:00:02]} Na3+ {[%emt 0:00:11]} 0-1